bitfinex/quotes_SOLUSD_20240714
["timestamp","ask_amount","ask_price","bid_price","bid_amount"]
[1720990045940,35.83308386,146.47,146.36,11.03]
[1720990046134,11.03,146.41,146.36,11.03]
[1720990046521,11.03,146.4,146.35,31.03]
[1720990047342,11.03,146.39,146.35,20.0]
[1720990048342,45.0,146.46,146.35,31.03]
[1720990048526,11.03,146.4,146.35,31.03]
[1720990048845,11.03,146.41,146.36,11.03]
[1720990049352,11.03,146.42,146.37,11.03]
[1720990049721,21.4947,146.47,146.37,11.03]
[1720990049927,11.03,146.44,146.38,20.0]
[1720990050251,11.03,146.44,146.39,11.03]
[1720990050553,21.4947,146.47,146.4,11.03]
[1720990050727,11.03,146.45,146.4,11.03]
[1720990051644,11.03,146.47,146.42,11.03]
[1720990052054,65.6147,146.51,146.38,26.0256]
[1720990052344,11.03,146.47,146.42,11.03]
[1720990052923,21.4947,146.51,146.43,11.03]
[1720990053143,11.03,146.49,146.44,11.03]
[1720990053421,21.4947,146.51,146.43,11.03]
[1720990053422,11.03,146.48,146.43,11.03]
[1720990053650,11.03,146.47,146.42,11.03]
[1720990053817,11.03,146.47,146.43,20.0]
[1720990054831,11.03,146.46,146.43,20.0]
[1720990055035,11.03,146.46,146.41,11.03]
[1720990055036,11.03,146.46,146.42,20.0]
[1720990055428,65.6147,146.51,146.42,31.03]
[1720990055643,45.0,146.5,146.43,11.03]
[1720990056772,11.03,146.48,146.43,11.03]
[1720990057330,11.03,146.49,146.44,31.03]
[1720990057531,10.855,146.49,146.44,11.03]
[1720990059645,15.1893,146.51,146.44,11.03]
[1720990059950,11.03,146.49,146.44,11.03]
[1720990060827,8.11425393,146.5,146.45,11.03]
[1720990061028,11.03,146.5,146.45,11.03]
[1720990061542,15.1893,146.51,146.45,11.03]
[1720990061741,11.03,146.5,146.45,11.03]
[1720990062056,11.03,146.5,146.42,20.0]
[1720990062350,11.03,146.48,146.43,11.03]
[1720990062555,11.03,146.48,146.44,20.0]
[1720990062756,11.03,146.49,146.44,31.03]
[1720990063554,15.1893,146.51,146.44,31.03]
[1720990063734,11.03,146.49,146.44,31.03]
[1720990064945,11.03,146.49,146.44,20.0]
[1720990065257,11.03,146.49,146.44,11.03]
[1720990065645,11.03,146.48,146.43,11.03]
[1720990065950,15.1893,146.51,146.44,20.0]
[1720990066126,11.03,146.48,146.44,20.0]
[1720990067052,11.03,146.49,146.44,31.03]
[1720990067735,11.03,146.49,146.45,11.03]
[1720990069157,11.03,146.49,146.44,31.03]
[1720990069663,11.03,146.49,146.45,11.03]
[1720990069974,11.03,146.5,146.45,11.03]
[1720990070146,11.03,146.48,146.44,20.0]
[1720990070464,11.03,146.48,146.43,11.03]
[1720990070641,11.03,146.49,146.44,31.03]
[1720990070840,11.03,146.49,146.44,11.03]
[1720990071960,11.03,146.5,146.45,11.03]
[1720990072539,15.1893,146.51,146.45,11.03]
[1720990072963,11.03,146.5,146.41,20.0]
[1720990073234,11.03,146.5,146.42,45.0]
[1720990073453,11.03,146.5,146.45,11.03]
[1720990073842,11.03,146.49,146.44,11.03]
[1720990074036,11.03,146.49,146.43,20.0]
[1720990074246,11.03,146.49,146.44,11.03]
[1720990074450,11.03,146.49,146.43,20.0]
[1720990074669,11.03,146.48,146.43,20.0]
[1720990074862,11.03,146.48,146.43,11.03]
[1720990075173,11.03,146.48,146.44,20.0]
[1720990075961,15.1893,146.51,146.44,20.0]
[1720990076144,11.03,146.49,146.44,31.03]
[1720990077173,11.03,146.5,146.45,11.03]
[1720990079048,11.03,146.48,146.44,20.0]
[1720990079372,11.03,146.49,146.44,11.03]
[1720990080367,11.03,146.48,146.43,11.03]
[1720990080574,11.03,146.48,146.44,20.0]
[1720990080753,15.1893,146.51,146.44,31.03]
[1720990081072,11.03,146.49,146.44,31.03]
[1720990081249,15.1893,146.51,146.44,31.03]
[1720990081569,11.03,146.49,146.44,31.03]
[1720990082567,11.03,146.49,146.44,20.0]
[1720990082865,11.03,146.48,146.44,20.0]
[1720990083378,11.03,146.49,146.44,20.0]
[1720990083751,11.03,146.49,146.44,11.03]
[1720990084477,15.1893,146.51,146.44,11.03]
[1720990084680,11.03,146.49,146.44,11.03]
[1720990084860,11.03,146.5,146.45,11.03]
[1720990086366,15.1893,146.51,146.45,11.03]
[1720990086564,11.03,146.5,146.45,11.03]
[1720990086876,15.1893,146.51,146.46,11.03]
[1720990086877,11.03,146.51,146.46,11.03]
[1720990087185,11.03,146.52,146.47,11.03]
[1720990087367,11.03,146.5,146.4,14.1223]
[1720990087555,11.03,146.5,146.44,11.03]
[1720990087756,11.03,146.5,146.45,20.0]
[1720990087955,11.03,146.49,146.41,65.0]
[1720990088173,11.03,146.49,146.44,11.03]
[1720990088476,11.03,146.49,146.45,20.0]
[1720990088778,11.03,146.5,146.45,31.03]
[1720990088962,11.03,146.51,146.45,31.03]
[1720990089373,29.5843,146.55,146.46,11.03]
[1720990089557,11.03,146.52,146.46,11.03]
[1720990090478,11.03,146.52,146.47,11.03]
[1720990090679,11.03,146.52,146.46,11.03]
[1720990090847,11.03,146.51,146.46,11.03]
[1720990091697,11.03,146.51,146.45,31.03]
[1720990093082,11.03,146.51,146.46,11.03]
[1720990093254,45.0,146.54,146.46,11.03]
[1720990093654,11.03,146.51,146.46,11.03]
[1720990093875,11.03,146.52,146.47,11.03]
[1720990095379,11.03,146.51,146.46,11.03]
[1720990095569,45.0,146.54,146.46,11.03]
[1720990095768,11.03,146.51,146.46,11.03]
[1720990096578,45.0,146.54,146.46,11.03]
[1720990096790,11.03,146.52,146.47,11.03]
[1720990098580,11.03,146.52,146.46,11.03]
[1720990098786,11.03,146.51,146.46,11.03]
[1720990099159,11.03,146.5,146.45,20.0]
[1720990099375,11.03,146.5,146.45,11.03]
[1720990099588,11.03,146.5,146.46,20.0]
[1720990099770,11.03,146.51,146.46,31.03]
[1720990099972,45.0,146.54,146.46,31.03]
[1720990100172,11.03,146.51,146.46,31.03]
[1720990102862,11.03,146.51,146.46,20.0]
[1720990104185,11.03,146.51,146.46,31.03]
[1720990107593,10.03,146.51,146.46,31.03]
[1720990107772,11.03,146.51,146.46,31.03]
[1720990108787,11.03,146.51,146.46,20.0]
[1720990109486,45.0,146.54,146.46,20.0]
[1720990109677,11.03,146.51,146.46,31.03]
[1720990110285,45.0,146.54,146.46,31.03]
[1720990110592,11.03,146.51,146.46,31.03]
[1720990110779,10.03,146.52,146.47,11.03]
[1720990110976,11.03,146.52,146.47,11.03]
[1720990111183,22.7607,146.55,146.47,11.03]
[1720990111393,11.03,146.53,146.48,11.03]
[1720990112575,16.1336,146.55,146.47,1.36514292]
[1720990112779,25.09543911,146.59,146.5,11.03]
[1720990112982,11.03,146.56,146.51,11.03]
[1720990113777,22.2809,146.59,146.46,20.0]
[1720990113778,11.03,146.55,146.46,20.0]
[1720990114102,11.03,146.54,146.49,11.03]
[1720990114277,11.03,146.54,146.5,20.0]
[1720990116000,17.8523,146.58,146.46,20.0]
[1720990116001,11.03,146.53,146.46,20.0]
[1720990116186,11.03,146.53,146.48,11.03]
[1720990116386,11.03,146.53,146.49,20.0]
[1720990116902,11.03,146.52,146.49,20.0]
[1720990117081,11.03,146.52,146.47,11.03]
[1720990117400,11.03,146.51,146.48,20.0]
[1720990117601,11.03,146.52,146.47,11.03]
[1720990117788,50.9423,146.58,146.48,20.0]
[1720990117988,45.0,146.57,146.48,20.0]
[1720990118184,11.03,146.53,146.48,31.03]
[1720990118998,11.03,146.52,146.45,14.1223]
[1720990119204,11.03,146.5,146.45,25.1523]
[1720990119501,11.03,146.5,146.46,20.0]
[1720990123111,11.03,146.51,146.46,31.03]
[1720990123784,11.03,146.5,146.46,20.0]
[1720990125695,11.03,146.48,146.43,6.6617]
[1720990125900,11.03,146.48,146.43,11.03]
[1720990126809,11.03,146.47,146.41,14.1223]
[1720990126982,11.03,146.47,146.42,31.03]
[1720990128405,11.03,146.51,146.43,11.03]
[1720990128602,11.03,146.47,146.44,20.0]
[1720990128809,11.03,146.47,146.42,31.03]
[1720990128994,22.1097,146.54,146.44,11.03]
[1720990129178,11.03,146.49,146.44,11.03]
[1720990130093,11.03,146.49,146.42,20.0]
[1720990130293,11.03,146.49,146.44,11.03]
[1720990131409,11.03,146.48,146.43,11.03]
[1720990131611,11.03,146.48,146.44,20.0]
[1720990133913,11.03,146.47,146.44,20.0]
[1720990134209,11.03,146.47,146.43,20.0]
[1720990134797,11.03,146.44,146.39,20.0]
[1720990134996,45.0,146.47,146.37,14.1223]
[1720990135219,11.03,146.41,146.37,14.1223]
[1720990135917,11.03,146.41,146.36,11.03]
[1720990136417,44.12,146.44,146.33,14.1223]
[1720990136418,11.03,146.4,146.35,11.03]
[1720990137606,11.03,146.4,146.33,14.1223]
[1720990137803,11.03,146.4,146.35,11.03]
[1720990138500,11.03,146.4,146.33,14.1223]
[1720990138700,11.03,146.38,146.33,14.1223]
[1720990138920,11.03,146.38,146.34,11.03]
[1720990139214,16.5698,146.42,146.34,11.03]
[1720990139417,11.03,146.39,146.35,11.03]
[1720990140015,11.03,146.39,146.36,20.0]
[1720990140210,11.03,146.39,146.35,11.03]
[1720990140429,11.03,146.39,146.36,20.0]
[1720990140606,16.5698,146.42,146.36,20.0]
[1720990140923,11.03,146.41,146.36,20.0]
[1720990141112,11.03,146.41,146.34,20.0]
[1720990141313,11.03,146.39,146.34,31.03]
[1720990143318,11.03,146.4,146.34,20.0]
[1720990143520,11.03,146.4,146.35,11.03]
[1720990143712,11.03,146.4,146.36,20.0]
[1720990143912,11.03,146.39,146.36,20.0]
[1720990144306,11.03,146.39,146.34,31.03]
[1720990144715,11.03,146.38,146.34,20.0]
[1720990145032,11.03,146.38,146.31,20.0]
[1720990145210,11.03,146.38,146.33,11.03]
[1720990145403,11.03,146.38,146.34,20.0]
[1720990145815,11.03,146.39,146.34,31.03]
[1720990148728,11.03,146.39,146.34,20.0]
[1720990148936,11.03,146.38,146.33,11.03]
[1720990149234,11.03,146.38,146.34,20.0]
[1720990149829,11.03,146.39,146.34,31.03]
[1720990150230,11.03,146.39,146.34,11.03]
[1720990150740,11.03,146.38,146.33,11.03]
[1720990151036,11.03,146.38,146.34,20.0]
[1720990151633,11.03,146.39,146.34,31.03]
[1720990152035,16.5698,146.42,146.34,31.03]
[1720990152036,11.03,146.4,146.35,11.03]
[1720990153134,11.03,146.4,146.34,20.0]
[1720990153319,11.03,146.39,146.34,11.03]
[1720990153818,11.03,146.38,146.33,11.03]
[1720990154118,11.03,146.38,146.34,20.0]
[1720990154725,11.03,146.4,146.35,12.39635453]
[1720990156022,11.03,146.4,146.35,11.03]
[1720990156535,11.03,146.39,146.34,31.03]
[1720990158428,16.5698,146.42,146.34,31.03]
[1720990158731,11.03,146.39,146.34,31.03]
[1720990159323,16.5698,146.42,146.37,11.03]
[1720990159638,6.313,146.43,146.38,31.03]
[1720990159639,11.03,146.43,146.38,31.03]
[1720990159827,22.1776,146.46,146.39,11.03]
[1720990160020,11.03,146.44,146.39,11.03]
[1720990160221,11.03,146.43,146.39,1.36593958]
[1720990161940,29.0056,146.46,146.35,20.0]
[1720990162243,11.03,146.41,146.36,11.03]
[1720990162435,11.03,146.41,146.37,20.0]
[1720990163747,11.03,146.44,146.34,14.1223]
[1720990163925,11.03,146.39,146.34,14.1223]
[1720990164241,11.03,146.44,146.33,11.03]
[1720990164443,11.03,146.38,146.33,11.03]
[1720990165056,11.03,146.38,146.34,20.0]
[1720990173157,16.1404,146.4,146.33,11.03]
[1720990173158,11.03,146.37,146.33,11.03]
[1720990173358,11.03,146.37,146.34,20.0]
[1720990174533,11.03,146.37,146.33,11.03]
[1720990174856,11.03,146.37,146.34,20.0]
[1720990175442,11.03,146.37,146.33,11.03]
[1720990175745,11.03,146.37,146.34,20.0]
[1720990180867,11.03,146.38,146.34,20.0]
[1720990182967,11.03,146.38,146.33,11.03]
[1720990183169,11.03,146.38,146.34,20.0]
[1720990183964,16.1404,146.4,146.34,20.0]
[1720990184395,11.03,146.39,146.34,11.03]
[1720990184564,11.03,146.39,146.35,1.36634735]
[1720990184746,11.03,146.39,146.36,1.36634747]
[1720990185257,11.03,146.39,146.34,11.03]
[1720990185764,11.03,146.39,146.35,1.36636988]
[1720990187462,11.03,146.39,146.34,11.03]
[1720990187848,11.03,146.39,146.33,11.03]
[1720990188048,11.03,146.39,146.34,20.0]
[1720990190368,11.03,146.38,146.34,20.0]
[1720990190764,11.03,146.38,146.33,11.03]
[1720990190950,11.03,146.38,146.34,20.0]
[1720990191859,11.03,146.38,146.34,19.0]
[1720990192061,16.1404,146.4,146.35,11.03]
[1720990192368,27.1704,146.4,146.35,11.03]
[1720990194551,11.03,146.39,146.34,19.0]
[1720990194883,11.03,146.37,146.32,11.03]
[1720990195059,11.03,146.37,146.33,20.0]
[1720990195576,11.03,146.38,146.34,11.03]
[1720990195763,11.03,146.38,146.35,20.0]
[1720990196578,11.03,146.38,146.34,20.0]
[1720990201272,16.1404,146.4,146.35,11.03]
[1720990201470,27.1704,146.4,146.35,11.03]
[1720990203280,6.0372,146.41,146.37,11.03]
[1720990203458,6.0372,146.41,146.38,1.36613507]
[1720990203659,6.0372,146.41,146.37,11.03]
[1720990204782,17.0672,146.41,146.36,11.03]
[1720990205082,17.0672,146.41,146.37,20.0]
[1720990205283,6.0372,146.41,146.37,20.0]
[1720990205462,6.0372,146.41,146.37,32.39613471]
[1720990206784,16.3202,146.43,146.37,20.0]
[1720990206973,16.3202,146.43,146.39,11.03]
[1720990207279,11.03,146.42,146.32,20.0]
[1720990207468,11.03,146.41,146.36,11.03]
[1720990207673,11.03,146.41,146.37,20.0]
[1720990208857,11.03,146.4,146.37,20.0]
[1720990209076,11.03,146.4,146.35,11.03]
[1720990209270,11.03,146.4,146.36,20.0]
[1720990209860,11.03,146.41,146.36,31.03]
[1720990210059,11.03,146.41,146.37,1.36615428]
[1720990210281,11.03,146.41,146.36,31.03]
[1720990210780,11.03,146.4,146.36,20.0]
[1720990213681,11.03,146.41,146.36,31.03]
[1720990215591,11.03,146.41,146.36,20.0]
[1720990216890,11.03,146.41,146.36,31.03]
[1720990217074,11.03,146.41,146.36,20.0]
[1720990217273,11.03,146.39,146.34,11.03]
[1720990217476,11.03,146.39,146.35,21.36639595]
[1720990217691,11.03,146.39,146.36,1.36639476]
[1720990217875,11.03,146.39,146.35,20.0]
[1720990218280,11.03,146.38,146.35,20.0]
[1720990218483,11.03,146.37,146.34,20.0]
[1720990218799,11.03,146.37,146.33,20.0]
[1720990218983,6.4107,146.41,146.33,20.0]
[1720990219295,11.03,146.4,146.35,11.03]
[1720990219489,11.03,146.38,146.36,20.0]
[1720990219996,11.03,146.38,146.34,20.0]
[1720990220870,11.03,146.39,146.34,31.03]
[1720990221803,26.9326,146.38,146.34,20.0]
[1720990222002,11.03,146.37,146.32,11.03]
[1720990222202,11.03,146.37,146.33,20.0]
[1720990222377,11.03,146.36,146.33,20.0]
[1720990222983,15.9026,146.38,146.33,11.03]
[1720990223177,26.9326,146.38,146.34,20.0]
[1720990224592,11.03,146.37,146.34,20.0]
[1720990224905,11.03,146.37,146.33,20.0]
[1720990225799,26.9326,146.38,146.33,31.03]
[1720990226603,15.9026,146.38,146.33,31.03]
[1720990226779,26.9326,146.38,146.33,31.03]
[1720990226973,15.9026,146.38,146.34,11.03]
[1720990227907,26.9326,146.38,146.33,20.0]
[1720990228200,26.9326,146.38,146.33,11.03]
[1720990228379,26.9326,146.38,146.34,20.0]
[1720990229183,11.03,146.37,146.34,20.0]
[1720990229388,11.03,146.37,146.32,11.03]
[1720990229681,11.03,146.37,146.33,20.0]
[1720990230699,11.03,146.34,146.26,7.1400803]
[1720990230884,11.03,146.33,146.28,11.03]
[1720990231590,11.03,146.33,146.29,11.03]
[1720990232100,15.9026,146.33,146.26,7.1400803]
[1720990232397,15.9026,146.33,146.26,11.03]
[1720990232583,11.03,146.31,146.26,11.03]
[1720990233187,11.03,146.31,146.27,20.0]
[1720990233680,11.03,146.31,146.26,11.03]
[1720990233881,11.03,146.31,146.27,20.0]
[1720990234906,11.03,146.31,146.26,11.03]
[1720990235111,11.03,146.31,146.27,20.0]
[1720990236103,11.03,146.3,146.27,20.0]
[1720990236690,11.03,146.3,146.25,11.03]
[1720990236894,11.03,146.29,146.26,20.0]
[1720990237717,11.03,146.3,146.26,20.0]
[1720990242524,11.03,146.3,146.25,11.03]
[1720990242701,11.03,146.3,146.26,20.0]
[1720990244118,17.647,146.31,146.26,31.03]
[1720990244445,17.647,146.31,146.26,20.0]
[1720990244446,6.617,146.31,146.26,20.0]
[1720990244628,6.617,146.31,146.27,11.03]
[1720990244925,6.617,146.31,146.28,20.0]
[1720990246119,11.03,146.32,146.23,44.12]
[1720990246120,15.9026,146.33,146.24,20.0]
[1720990246328,6.4727,146.35,146.3,11.03]
[1720990246629,17.5027,146.35,146.3,11.03]
[1720990246925,17.5027,146.35,146.25,45.0]
[1720990246926,6.4727,146.35,146.32,11.03]
[1720990247624,26.6189,146.37,146.32,11.03]
[1720990249456,15.5889,146.37,146.31,20.0]
[1720990249735,6.4727,146.39,146.31,20.0]
[1720990249943,6.4727,146.39,146.35,11.03]
[1720990250822,15.5889,146.41,146.31,20.0]
[1720990251028,15.5889,146.41,146.37,11.03]
[1720990253334,17.6069,146.43,146.38,12.39616224]
[1720990253513,17.6069,146.43,146.38,11.03]
[1720990254318,11.03,146.4,146.35,11.03]
[1720990254623,11.03,146.4,146.36,20.0]
[1720990255543,11.03,146.41,146.36,31.03]
[1720990256141,56.03,146.4,146.36,20.0]
[1720990256537,71.2984,146.4,146.36,20.0]
[1720990256843,11.03,146.39,146.36,20.0]
[1720990257022,11.03,146.39,146.35,20.0]
[1720990257340,11.03,146.39,146.3,14.1223]
[1720990257341,11.03,146.39,146.34,11.03]
[1720990257549,11.03,146.39,146.35,20.0]
[1720990257924,15.2684,146.4,146.35,31.03]
[1720990258230,26.2984,146.4,146.35,31.03]
[1720990259048,11.03,146.39,146.35,20.0]
[1720990259735,11.03,146.39,146.34,11.03]
[1720990259928,11.03,146.39,146.35,20.0]
[1720990261654,11.03,146.38,146.35,20.0]
[1720990261855,11.03,146.38,146.34,20.0]
[1720990262145,11.03,146.39,146.34,20.0]
[1720990262453,11.03,146.39,146.34,11.03]
[1720990262943,11.03,146.39,146.35,20.0]
[1720990263845,11.03,146.38,146.35,20.0]
[1720990264051,11.03,146.38,146.34,20.0]
[1720990264429,11.03,146.39,146.34,31.03]
[1720990269253,15.2684,146.4,146.34,31.03]
[1720990269429,15.2684,146.4,146.35,11.03]
[1720990269628,15.2684,146.4,146.36,11.03]
[1720990269938,15.2684,146.4,146.35,11.03]
[1720990270352,11.03,146.39,146.34,20.0]
[1720990270533,11.03,146.39,146.34,11.03]
[1720990270745,11.03,146.39,146.35,20.0]
[1720990270952,11.03,146.38,146.35,20.0]
[1720990271152,11.03,146.39,146.35,20.0]
[1720990273262,11.03,146.39,146.34,11.03]
[1720990273444,11.03,146.39,146.35,20.0]
[1720990277055,11.03,146.38,146.33,11.03]
[1720990277236,11.03,146.38,146.34,20.0]
[1720990277858,11.03,146.39,146.34,20.0]
[1720990278972,11.03,146.38,146.34,20.0]
[1720990279255,15.2684,146.4,146.34,20.0]
[1720990279669,11.03,146.38,146.34,20.0]
[1720990280050,11.03,146.36,146.31,11.03]
[1720990280233,11.03,146.35,146.32,20.0]
[1720990280840,11.03,146.35,146.3,11.03]
[1720990281565,11.03,146.35,146.27,14.1223]
[1720990281769,11.03,146.35,146.3,11.03]
[1720990282260,11.03,146.35,146.31,20.0]
[1720990282561,11.03,146.36,146.31,31.03]
[1720990283239,45.0,146.37,146.31,31.03]
[1720990283440,6.1117,146.39,146.31,31.03]
[1720990283441,11.03,146.36,146.31,31.03]
[1720990283649,11.03,146.36,146.31,20.0]
[1720990283962,11.03,146.35,146.3,11.03]
[1720990284162,11.03,146.35,146.31,20.0]
[1720990285042,62.1417,146.34,146.31,20.0]
[1720990285241,11.03,146.32,146.27,11.03]
[1720990285952,11.03,146.32,146.24,13.35325906]
[1720990286174,11.03,146.32,146.24,6.2179]
[1720990286351,11.03,146.31,146.26,11.03]
[1720990286549,11.03,146.3,146.22,34.1223]
[1720990286752,11.03,146.3,146.25,11.03]
[1720990287252,11.03,146.31,146.26,11.03]
[1720990287455,51.1117,146.34,146.26,11.03]
[1720990287658,11.03,146.31,146.26,11.03]
[1720990287866,11.03,146.31,146.27,20.0]
[1720990288851,11.03,146.3,146.27,20.0]
[1720990289049,11.03,146.3,146.26,20.0]
[1720990291069,11.03,146.29,146.26,20.0]
[1720990291267,11.03,146.29,146.24,11.03]
[1720990291473,11.03,146.29,146.25,20.0]
[1720990291653,15.1165,146.3,146.25,21.36736977]
[1720990291853,26.1465,146.3,146.26,11.03]
[1720990292276,15.1165,146.3,146.27,11.03]
[1720990293387,15.1165,146.3,146.25,20.0]
[1720990293388,26.1465,146.3,146.26,11.03]
[1720990293889,26.1465,146.3,146.25,31.03]
[1720990294787,26.1465,146.3,146.26,11.03]
[1720990295086,26.1465,146.3,146.25,20.0]
[1720990295087,15.1165,146.3,146.27,31.03]
[1720990295284,15.1165,146.3,146.27,11.03]
[1720990295484,15.1165,146.3,146.25,20.0]
[1720990295485,21.9925,146.34,146.28,20.0]
[1720990295662,21.9925,146.34,146.3,11.03]
[1720990295860,21.9925,146.34,146.31,11.03]
[1720990296078,15.8808,146.34,146.32,1.36670701]
[1720990296758,15.8808,146.34,146.32,12.39670701]
[1720990297075,15.8808,146.34,146.32,11.03]
[1720990299686,6.4527,146.37,146.32,11.03]
[1720990299863,11.03,146.36,146.26,6.5844]
[1720990300068,11.03,146.36,146.31,11.03]
[1720990300367,17.4827,146.37,146.32,31.03]
[1720990300686,17.4827,146.37,146.32,11.03]
[1720990303180,11.03,146.35,146.3,11.03]
[1720990303387,11.03,146.35,146.31,20.0]
[1720990304580,11.03,146.35,146.3,11.03]
[1720990304782,11.03,146.34,146.31,20.0]
[1720990304980,11.03,146.33,146.28,11.03]
[1720990305292,11.03,146.33,146.29,20.0]
[1720990305884,26.9108,146.33,146.28,11.03]
[1720990306193,26.9108,146.33,146.29,20.0]
[1720990309072,11.03,146.32,146.29,20.0]
[1720990309269,11.03,146.32,146.28,20.0]
[1720990313499,15.8808,146.33,146.28,20.0]
[1720990313683,15.8808,146.33,146.28,31.03]
[1720990313883,15.8808,146.33,146.29,11.03]
[1720990314084,15.8808,146.33,146.3,20.0]
[1720990314585,26.9108,146.33,146.3,20.0]
[1720990314892,15.8808,146.33,146.3,20.0]
[1720990315197,26.9108,146.33,146.3,20.0]
[1720990317181,26.9108,146.33,146.29,11.03]
[1720990317388,26.9108,146.33,146.3,20.0]
[1720990319202,26.9108,146.33,146.28,11.03]
[1720990319518,26.9108,146.33,146.29,20.0]
[1720990320000,11.03,146.32,146.29,20.0]
[1720990320903,15.8808,146.33,146.29,20.0]
[1720990321106,15.8808,146.33,146.29,31.03]
[1720990321581,26.9108,146.33,146.29,20.0]
[1720990321780,26.9108,146.33,146.28,11.03]
[1720990321980,11.03,146.32,146.29,20.0]
[1720990322182,11.03,146.32,146.27,11.03]
[1720990322379,6.605,146.31,146.28,20.0]
[1720990322689,11.03,146.3,146.28,20.0]
[1720990322884,11.03,146.3,146.22,258.0]
[1720990323101,11.03,146.28,146.21,0.2]
[1720990323280,6.605,146.31,146.25,11.03]
[1720990323485,6.605,146.31,146.26,12.39717198]
[1720990323486,17.635,146.31,146.26,12.39717198]
[1720990323688,17.635,146.31,146.26,11.03]
[1720990323900,6.605,146.31,146.23,11.03]
[1720990324206,6.605,146.31,146.27,11.03]
[1720990325910,17.635,146.31,146.21,0.2]
[1720990326095,17.635,146.31,146.26,11.03]
[1720990326298,17.635,146.31,146.27,20.0]
[1720990326807,11.03,146.3,146.27,20.0]
[1720990327110,11.03,146.3,146.25,11.03]
[1720990327279,11.03,146.3,146.26,20.0]
[1720990327705,6.605,146.31,146.26,31.03]
[1720990327985,17.635,146.31,146.26,31.03]
[1720990328307,17.635,146.31,146.26,20.0]
[1720990328502,17.635,146.31,146.27,11.03]
[1720990329005,17.635,146.31,146.26,11.03]
[1720990329191,17.635,146.31,146.27,20.0]
[1720990330006,17.635,146.31,146.26,11.03]